[Event "Czech Open-GM 2022"]
[Site "Pardubice"]
[Date "2022.07.25"]
[Round "4.28"]
[White "Luch, Michal"]
[Black "Luberanski, Jakub"]
[Result "1-0"]
[ECO "D11"]
[WhiteElo "2375"]
[BlackElo "2241"]
[Annotator "TA"]
[PlyCount "81"]
[EventDate "2022.07.22"]
[EventType "swiss"]
[EventCountry "CZE"]
[SourceTitle "playchess.com"]
[Source "ChessBase"]
[SourceQuality "1"]
[TimeControl "40/5400+30:1800+30"]

{[%evp 13,81,21,22,2,12,5,10,-15,-16,-22,-11,-30,32,21,45,43,38,35,58,56,56,52,60,50,70,48,43,38,42,33,31,33,33,0,25,13,31,35,33,28,68,61,58,54,211,210,194,198,322,16,100,100,100,100,100,100,100,100,100,100,1234,1103,5343,5343,29981,29982,29981,29982,5497,1015]} 1. d4 {[%emt 0:00:01]} d5 {[%emt 0:00:04]} 2. c4 {[%emt 0:00:04]} c6 {[%emt 0:00:03]} 3. Nf3 {[%emt 0:00:05]} Nf6 {[%emt 0:00:02]} 4. Qc2 {[%emt 0:00:24]} dxc4 {[%emt 0:00:56]} 5. Qxc4 {[%emt 0:00:03]} Bf5 {[%emt 0:00:06]} 6. g3 {[%emt 0:00:06]} e6 {[%emt 0:00:03]} 7. Bg2 {[%emt 0:00:06]} Be7 {[%emt 0:00:03]} 8. O-O {[%emt 0:00:08] D23: Queen's Gambit Accepted: 3 Nf3 Nf6 sidelines.} O-O {[%emt 0:00:04]} 9. Nbd2 {[%emt 0:00:06]} a5 {[%emt 0:01:21][%cal Ba7a5,Ba5a4][%mdl 32]} 10. Qb3 {[%emt 0:05:34] The position is equal.} Ra7 {[%emt 0:00:18] [#]} 11. Re1 $146 {[%emt 0:07:34]} ({Predecessor:} 11. Nc4 a4 12. Qd1 h6 13. Bf4 Na6 14. Rc1 Nb4 15. a3 Nbd5 16. Be5 Ra8 17. Nfd2 {1-0 (39) Mishra,A (2517)-Homa,S (2276) Charlotte 2021}) 11... a4 {[%emt 0:02:40]} 12. Qd1 {[%emt 0:00:06]} Ne4 {[%emt 0:07:28]} ({Black should play} 12... Bg6 $11) 13. Nh4 $14 {[%emt 0:17:02]} Nxd2 {[%emt 0:07:13]} 14. Nxf5 {[%emt 0:00:23]} exf5 {[%emt 0:00:04]} 15. Qxd2 {[%emt 0:01:39]} Bf6 {[%emt 0:07:32]} 16. Qc2 {[%emt 0:03:59]} g6 {[%emt 0:05:41]} 17. Rd1 {[%emt 0:10:01]} Nd7 {[%emt 0:06:09]} 18. Be3 {[%emt 0:00:51]} Ra6 {[%emt 0:05:17]} 19. d5 {[%emt 0:11:56][%cal Rd5c6]} c5 {[%emt 0:01:01]} ({Weaker is} 19... a3 20. dxc6 axb2 21. Rab1 (21. c7 bxa1=R 22. cxd8=R Rxd1+ 23. Qxd1 Rxd8 $14) 21... bxc6 22. Qc4 $16 (22. Qd3 Rxa2 23. Bd4 Bxd4 $15)) 20. Rac1 {[%emt 0:01:29][%cal Ba1c1,Bc1c2,Bc2c8][%mdl 32]} Re8 {[%emt 0:14:40][%cal Oe8e3]} 21. Bxc5 {[%emt 0:08:23]} Nxc5 {[%emt 0:00:09]} 22. Qxc5 {[%emt 0:00:02]} Bxb2 {[%emt 0:02:11]} 23. Rc2 {[%emt 0:00:37]} Be5 {[%emt 0:00:46]} 24. e3 {[%emt 0:10:26]} Qb6 {[%emt 0:07:34]} 25. Bf1 {[%emt 0:02:11]} Bd6 {[%emt 0:02:46]} 26. Qb5 {[%emt 0:01:27]} Re7 {[%emt 0:03:05]} 27. Rc8+ {[%emt 0:02:29]} Kg7 {[%emt 0:00:05]} 28. Qd3 $36 {[%emt 0:04:27][%mdl 2048] White has some pressure.} Ra5 $2 {[%emt 0:03:04]} (28... Be5 $14) 29. Rb1 $18 {[%emt 0:03:36]} Qa7 {[%emt 0:02:00]} 30. Qc3+ {[%emt 0:00:07]} Be5 {[%emt 0:01:19]} (30... f6 $142 31. Rd8 Bc7) 31. d6 $2 {[%emt 0:07:27]} (31. Qb4 $18 b6 32. Bb5) 31... Rd7 {[%emt 0:01:44] [#]} (31... Bxc3 $11 {keeps the balance.} 32. dxe7 Re5) 32. Rg8+ $1 $16 {[%emt 0:00:32]} Kxg8 {[%emt 0:10:41]} 33. Qc8+ {[%emt 0:00:01]} Kg7 {[%emt 0:00:07]} 34. Qxd7 {[%emt 0:00:02] White is more active.} Qc5 {[%emt 0:02:42]} 35. Rxb7 {[%emt 0:01:29]} Qd5 {[%emt 0:00:03]} 36. Qc8 {[%emt 0:02:31] And now d7 would win.} Qxd6 {[%emt 0:02:43][%mdl 8192] [#]} (36... Bxd6 $16 37. Bc4 Rc5 38. Bxd5 Rxc8) 37. Bc4 $1 $18 {[%emt 0:00:05]} ({Less strong is} 37. Qe8 Qf8 38. Qd7 Rc5 $16) 37... Rd5 {[%emt 0:02:38]} 38. Qe8 {[%emt 0:00:13]} Rd1+ {[%emt 0:00:39]} 39. Kg2 {[%emt 0:00:01]} Kh6 {[%emt 0:00:28]} 40. Qxf7 {[%emt 0:00:13]} Qc6+ {[%emt 0:00:30]} 41. Kh3 {[%emt 0:30:16] Weighted Error Value: White=0.27 (precise) /Black=0.39} 1-0

[Event "Czech Open-GM 2022"]
[Site "Pardubice"]
[Date "2022.07.25"]
[Round "4.29"]
[White "Nemec, Jachym"]
[Black "Paseka, Matyas"]
[Result "1-0"]
[ECO "A01"]
[WhiteElo "2357"]
[BlackElo "2218"]
[Annotator "TA"]
[PlyCount "133"]
[EventDate "2022.07.22"]
[EventType "swiss"]
[EventCountry "CZE"]
[SourceTitle "playchess.com"]
[Source "ChessBase"]
[SourceQuality "1"]
[TimeControl "40/5400+30:1800+30"]

{[%evp 13,133,35,36,35,37,41,39,36,39,53,59,63,53,0,0,0,0,0,-3,0,64,68,85,77,114,114,115,127,237,252,292,287,304,284,284,282,276,284,277,212,314,210,195,207,215,221,212,205,402,408,389,399,403,374,312,312,312,318,438,426,470,452,555,445,426,356,422,426,412,379,383,353,314,0,407,597,596,597,590,590,574,551,856,818,695,680,859,823,29971,29972,29972,29970,29973,29975,29976,29977,29977,29978,29978,29979,29979,29979,29979,29979,29982,0,29979,29977,29978,29978,29978,29979,29978,29979,29983,29983,29983,29984,29987,29987,29987,29984]} 1. b3 {[%emt 0:00:02]} Nf6 {[%emt 0:00:41]} 2. Bb2 {[%emt 0:00:04]} g6 {[%emt 0:00:26]} 3. Nf3 {[%emt 0:00:04]} Bg7 {[%emt 0:00:09]} 4. g3 {[%emt 0:00:05]} d6 {[%emt 0:02:43]} 5. d4 {[%emt 0:00:04][%cal Bd2d4,Bd4d5][%mdl 32]} O-O {[%emt 0:01:08]} 6. Bg2 {[%emt 0:00:10]} c5 {[%emt 0:01:42]} 7. c4 {[%emt 0:00:13]} Nc6 {[%emt 0:00:57] 7...Ne4 might become the main line.} 8. d5 {[%emt 0:02:17] E60: King's Indian: Unusual lines and Fianchetto Variation without Nc3.} Na5 {[%emt 0:00:21]} 9. O-O {[%emt 0:00:12]} a6 {[%emt 0:00:47]} 10. Nbd2 {[%emt 0:07:53] White is slightly better.} b5 {[%emt 0:03:11]} 11. e4 {[%emt 0:06:13][%cal Be2e4,Be4e5][%mdl 32]} Rb8 {[%emt 0:06:07]} 12. e5 {[%emt 0:00:59] [#]} Nd7 $146 {[%emt 0:03:30]} ({Predecessor:} 12... Ne8 13. Bc3 e6 14. Rc1 b4 15. Ba1 exd5 16. cxd5 Bb7 17. Ne4 dxe5 18. Rxc5 f6 {1-0 (39) Hardarson,P (2061)-Mai,A (2094) Reykjavik 2020}) 13. Qe1 {[%emt 0:01:10]} ({Better is} 13. Re1 $14) 13... bxc4 $11 {[%emt 0:04:46]} 14. exd6 {[%emt 0:00:24]} exd6 {[%emt 0:00:46]} (14... Bxb2 $2 15. dxe7 Qb6 16. e8=Q (16. exf8=B Nxf8 17. Ne5 c3 $18) (16. Nxc4 Nxc4 17. exf8=N Nxf8 $16) 16... Rxe8 17. Qxe8+ Nf8 18. Ng5 $18 (18. bxc4 Bf5 $18) (18. Nxc4 Nxc4 19. bxc4 Bf5 $16)) 15. Bxg7 {[%emt 0:00:05]} Kxg7 {[%emt 0:00:25]} 16. bxc4 {[%emt 0:00:41]} Re8 {[%emt 0:13:22]} ({Black should play} 16... Rb4 $11) 17. Qc1 $14 {[%emt 0:01:08]} Nf6 {[%emt 0:01:41]} 18. Qc3 {[%emt 0:02:39]} Nb7 {[%emt 0:17:30]} 19. Rab1 {[%emt 0:03:33] White is more active.} Bf5 {[%emt 0:00:42]} 20. Rb3 {[%emt 0:00:09]} Qa5 {[%emt 0:16:09]} (20... Kg8 $16 {was necessary.} 21. Qb2 Bc8) 21. Qb2 $18 {[%emt 0:00:53]} Qc7 {[%emt 0:00:27]} 22. Nh4 {[%emt 0:01:27]} Na5 {[%emt 0:01:02]} 23. Nxf5+ {[%emt 0:00:18]} gxf5 {[%emt 0:00:06]} 24. Rxb8 {[%emt 0:00:15]} Qxb8 {[%emt 0:00:11]} 25. Qc2 {[%emt 0:00:33]} Re2 {[%emt 0:08:19] [#] And now ...Qb4 would win.} 26. Qxf5 {[%emt 0:00:34] Strongly threatening Qg5+.} h6 {[%emt 0:00:11] Prevents Qg5+.} (26... Qb2 {was worth a try.} 27. Rd1 (27. Ne4 Qe5 $16) 27... h6) 27. Ne4 {[%emt 0:00:29]} Rxe4 {[%emt 0:00:25]} 28. Bxe4 {[%emt 0:00:06]} Nxc4 {[%emt 0:00:14]} 29. Bg2 {[%emt 0:04:55] Hoping for Qd3.} Qb2 {[%emt 0:01:19]} 30. Qb1 {[%emt 0:03:38] aiming for Qxb2.} Qa3 {[%emt 0:01:41]} (30... Qd2 31. Qc1 Qe2) 31. Qb3 {[%emt 0:23:16]} Qxb3 {[%emt 0:00:10]} 32. axb3 {[%emt 0:00:03][%mdl 4096] Endgame KRB-KNN} Nd2 {[%emt 0:00:08]} 33. Ra1 {[%emt 0:00:04]} Nxb3 {[%emt 0:00:19]} 34. Rxa6 {[%emt 0:00:03]} Ne8 {[%emt 0:00:40]} 35. f4 {[%emt 0:03:22]} Kf6 {[%emt 0:02:31]} 36. Kf2 {[%emt 0:00:28]} Ke7 {[%emt 0:00:47]} 37. Ra7+ {[%emt 0:00:06]} Kf6 {[%emt 0:00:14]} 38. Ke3 {[%emt 0:01:02]} Nd4 {[%emt 0:02:07]} 39. Rb7 {[%emt 0:12:29]} h5 {[%emt 0:00:32]} 40. Be4 {[%emt 0:01:55]} Kg7 {[%emt 0:02:09]} 41. h3 {[%emt 0:33:02]} Kf8 {[%emt 0:31:02]} 42. Rd7 {[%emt 0:06:31]} Nb5 {[%emt 0:00:57]} 43. Rb7 $2 {[%emt 0:09:23]} (43. Bd3 $18 Nd4 44. Kd2) 43... Nc3 {[%emt 0:00:34][%mdl 8192]} (43... Nd4 $11 44. Rd7 Nb5) 44. Bf3 {[%emt 0:01:43]} (44. Rb3 $142 Nxe4 45. Kxe4) 44... Nf6 {[%emt 0:00:19]} 45. Kd3 {[%emt 0:01:51]} Ncxd5 {[%emt 0:01:58]} 46. Bxd5 {[%emt 0:00:00]} Nxd5 {[%emt 0:00:00] KR-KN} 47. Rd7 {[%emt 0:00:00]} Ne7 {[%emt 0:00:00]} 48. Rxd6 {[%emt 0:00:00]} Nf5 {[%emt 0:00:00]} 49. Rd8+ {[%emt 0:00:00]} Kg7 {[%emt 0:00:00]} 50. g4 {[%emt 0:00:00]} hxg4 {[%emt 0:00:00]} 51. hxg4 {[%emt 0:00:00]} Nh6 {[%emt 0:00:00]} 52. Rd5 {[%emt 0:00:00]} f6 {[%emt 0:00:00]} 53. g5 {[%emt 0:00:00]} fxg5 {[%emt 0:00:00]} 54. Rxg5+ {[%emt 0:00:00]} Kf6 {[%emt 0:00:00]} 55. Rxc5 {[%emt 0:00:00]} Nf7 {[%emt 0:00:00]} 56. Ke4 {[%emt 0:00:00]} Nd6+ {[%emt 0:00:05]} 57. Kf3 {[%emt 0:00:00]} Nf7 {[%emt 0:00:30]} 58. Ra5 {[%emt 0:00:00]} Kg6 {[%emt 0:00:34]} 59. Rc5 {[%emt 0:00:00]} Kf6 {[%emt 0:00:12]} 60. Rb5 {[%emt 0:00:00] White mates.} Kg6 {[%emt 0:06:28]} 61. Ra5 {[%emt 0:00:00]} Kf6 {[%emt 0:00:05]} 62. Rc5 {[%emt 0:00:00]} Ke6 {[%emt 0:02:23]} 63. Kg4 {[%emt 0:00:00]} Kf6 {[%emt 0:00:31]} 64. Rc6+ {[%emt 0:00:00]} Kg7 {[%emt 0:00:22]} 65. Kf5 {[%emt 0:00:00]} Nh6+ {[%emt 0:01:21] [#]} 66. Rxh6 $1 {[%emt 0:00:00]} Kxh6 {[%emt 0:00:08]} 67. Ke4 {Weighted Error Value: White=0.25 (precise) /Black=0.43} 1-0

[Event "Czech Open-GM 2022"]
[Site "Pardubice"]
[Date "2022.07.25"]
[Round "4.30"]
[White "Gloser, David"]
[Black "Malek, Daniel"]
[Result "1-0"]
[ECO "B12"]
[WhiteElo "2221"]
[BlackElo "2355"]
[Annotator "TA"]
[PlyCount "101"]
[EventDate "2022.07.22"]
[EventType "swiss"]
[EventCountry "CZE"]
[SourceTitle "playchess.com"]
[Source "ChessBase"]
[SourceQuality "1"]
[TimeControl "40/5400+30:1800+30"]

{[%evp 13,101,29,17,23,27,18,27,27,11,9,24,-72,-56,-89,-91,-125,-50,-62,-68,-95,-79,-84,-51,-73,38,18,34,-19,0,0,0,-30,-31,-122,0,0,0,0,0,0,0,0,0,0,29,0,34,0,0,0,38,38,38,38,232,237,237,0,12,0,237,237,237,237,237,237,222,0,237,237,237,237,230,74,87,87,82,86,89,0,230,223,99,208,29993,29994,29994,29995,29995,29996]} 1. e4 {[%emt 0:00:05]} c6 {[%emt 0:00:05]} 2. d4 {[%emt 0:00:04]} d5 {[%emt 0:00:04]} 3. e5 {[%emt 0:00:04]} Bf5 {[%emt 0:00:05]} 4. h4 {[%emt 0:00:04]} h6 {[%emt 0:00:13]} 5. g4 {[%emt 0:01:05]} Be4 {[%emt 0:00:07]} 6. f3 {[%emt 0:01:15]} Bh7 {[%emt 0:00:06]} 7. e6 {[%emt 0:01:22]} Qd6 {[%emt 0:00:13]} 8. exf7+ $1 {[%emt 0:02:58] B12: Caro-Kann: Advance Variation.} Kxf7 {[%emt 0:00:08]} 9. f4 {[%emt 0:16:22] Prevents e5. Black should prevent Nf3.} Nf6 {[%emt 0:00:45]} 10. Nf3 {[%emt 0:09:18] White has an edge. 10.Bh3 is not played anymore.} Nxg4 {[%emt 0:00:35]} 11. Bh3 {[%emt 0:02:41]} (11. Ne5+ Nxe5 12. fxe5 Qg6 $15) 11... h5 {[%emt 0:00:34]} 12. Bxg4 {[%emt 0:05:53]} (12. Ne5+ $11 Kg8 13. Nxg4 hxg4 14. Qxg4 Bxc2 15. Qe6+ Kh7 16. Rh2) 12... hxg4 $17 {[%emt 0:00:08] [#]} 13. Ng5+ $146 {[%emt 0:00:16][%mdl 64] Discovered Attack} ({Predecessor:} 13. Ne5+ Kg8 14. Qxg4 Qf6 15. Be3 Bf5 16. Qg3 Bxc2 17. Nc3 Bf5 18. O-O-O Nd7 19. h5 Nxe5 20. fxe5 {½-½ (57) Reshef,O (2453)-Macieja,B (2533) Dallas 2017}) 13... Kg8 {[%emt 0:06:42]} 14. Qxg4 {[%emt 0:02:01]} Nd7 {[%emt 0:12:31]} ({Black should try} 14... Bxc2 $17 {[%cal Oe7e6] And now ...e6! would win.} 15. Na3 Bg6) 15. f5 {[%emt 0:01:08] Against e6} Nf6 {[%emt 0:03:43]} 16. Qf3 {[%emt 0:00:50]} e6 {[%emt 0:06:18]} 17. fxe6 {[%emt 0:03:09]} Re8 {[%emt 0:04:42] Threatens to win with ...Be4.} 18. Nc3 {[%emt 0:03:50] Prevents Be4.} Rxe6+ {[%emt 0:04:00]} (18... Qb4 $17) 19. Nxe6 $14 {[%emt 0:02:25]} Qxe6+ {[%emt 0:00:07]} 20. Be3 {[%emt 0:03:42]} (20. Qe2 $14 Qxe2+ 21. Kxe2) 20... Bxc2 $11 {[%emt 0:06:01]} 21. Kd2 $1 {[%emt 0:04:07]} Bg6 {[%emt 0:02:09] Hoping for ...Ne4+.} 22. Raf1 {[%emt 0:05:54]} Bb4 {[%emt 0:02:35] aiming for ...Be4.} 23. Bg5 {[%emt 0:01:36]} (23. Rfg1 $15) 23... Ne4+ {[%emt 0:20:22]} (23... Be4 $6 24. Qe2 $11) ({Better is} 23... Qe4 $1 $17 {[%cal Re4c2] ...Qc2+ is the strong threat.} 24. Bxf6 Qc2+ 25. Ke3 Qxb2) 24. Kc1 {[%emt 0:00:09]} Nxg5 {[%emt 0:12:42]} 25. hxg5 {[%emt 0:01:25]} Rxh1 {[%emt 0:00:08]} 26. Rxh1 {[%emt 0:00:21]} Be7 {[%emt 0:04:41]} 27. Rg1 {[%emt 0:00:56]} Bh7 {[%emt 0:00:31]} 28. Kd1 {[%emt 0:08:06]} Qg6 {[%emt 0:01:38] White must now prevent ...Qc2+.} 29. Qg4 {[%emt 0:02:01]} Qc2+ {[%emt 0:01:00]} 30. Ke1 {[%emt 0:00:00]} Bf5 {[%emt 0:00:04] Prevents Qc8+.} (30... Qxb2 $2 31. Qe6+ Kf8 32. Qc8+ (32. Rf1+ Ke8 $11) 32... Kf7 33. Rf1+ Bf6 34. Qd7+ Kf8 35. Qh3 (35. gxf6 Qxc3+ 36. Kf2 Qxd4+ 37. Kg3 Qe5+ 38. Rf4 Qg5+ 39. Kh3 gxf6 $11) 35... Qc1+ 36. Nd1 Qxg5 37. Qxh7 $18) 31. Qf4 {[%emt 0:03:54]} Qxb2 {[%emt 0:05:10]} (31... Bg6 $5 {[%cal Rc2b2]}) 32. Qxf5 {[%emt 0:01:27]} Qxc3+ {[%emt 0:00:06][%mdl 4096] Endgame KQR-KQB} 33. Ke2 {[%emt 0:02:17] The board is on fire.} Qb2+ $2 {[%emt 0:00:12]} (33... Qxd4 $2 34. Qe6+ Kf8 35. Qc8+ (35. Rf1+ Ke8 $11) 35... Kf7 36. Rf1+ Bf6 37. Qd7+ (37. gxf6 Qc4+ 38. Kf2 Qf4+ 39. Kg2 Qe4+ 40. Rf3 Qe2+ 41. Kg3 Qe1+ 42. Kg4 Qe4+ 43. Kg5 Qg6+ 44. Kh4 Qe4+ 45. Qg4 Qe1+ 46. Qg3 Qh1+ 47. Kg4 gxf6 $18) (37. Qxb7+ Kg6 $11) 37... Kg6 38. Qf5+ (38. gxf6 Qe5+ 39. Kd3 Qe4+ 40. Kd2 Qd4+ 41. Ke2 Qe5+ 42. Kf2 Qxf6+ 43. Kg2 Qg5+ 44. Kh1 Qh4+ 45. Kg2 Qg5+ 46. Kh3 Qe3+ 47. Kg4 Qg5+ 48. Kh3 Qe3+ 49. Kh4 Qg5+ 50. Kh3 $11) 38... Kf7 39. gxf6 Qb2+ 40. Kf3 Qxf6 41. Qxf6+ gxf6 42. Rh1 $18) (33... Qc4+ $1 $14 34. Kf3 Qc3+ 35. Kg2 Qd2+ 36. Kf3 (36. Kh1 Qe2 $11) 36... Qc3+ 37. Kg2 Qd2+ 38. Kh3 (38. Kh1 Qe2 $14) 38... Bd8) 34. Kf3 $18 {[%emt 0:02:11][%mdl 1024] White has strong compensation.} Qc3+ {[%emt 0:00:59] [#]} 35. Ke2 $2 {[%emt 0:02:21]} (35. Kg2 $1 $18 Qd2+ 36. Kh3 (36. Kh1 Qe2 $14)) 35... Qb2+ $11 {[%emt 0:00:45]} (35... Qxd4 $2 36. Qe6+ Kf8 37. Qc8+ (37. Rf1+ Ke8 $11) 37... Kf7 38. Rf1+ Bf6 39. Qd7+ (39. gxf6 Qe4+ 40. Kf2 Qh4+ 41. Kg2 Qe4+ 42. Rf3 Qe2+ 43. Kg3 Qe5+ 44. Kh4 Qe1+ 45. Kg4 Qe4+ 46. Kg5 Qe5+ 47. Qf5 gxf6+ 48. Kg4 Ke7 $18) (39. Qxb7+ Kg6 $11) 39... Kg6 40. Qf5+ (40. gxf6 Qe5+ 41. Kf2 Qxf6+ 42. Kg2 Qg5+ 43. Kh3 Qe3+ 44. Kh4 Qg5+ 45. Kh3 Qe3+ 46. Kh4 Qg5+ 47. Kh3 $11) 40... Kf7 41. gxf6 Qb2+ 42. Ke3 Qc3+ 43. Kf4 gxf6 44. Qd7+ Kf8 45. Qc8+ Kf7 46. Qxb7+ Ke6 47. Qc8+ Ke7 48. Qf5 $18) 36. Kf3 $2 {[%emt 0:01:14]} (36. Ke3 $11 Qa3+ 37. Ke2 (37. Kf4 Bd6+ 38. Kg4 Qe3 $14) 37... Qb2+) 36... Qc3+ $1 $18 {[%emt 0:00:04] [#]} 37. Kg2 $1 {[%emt 0:05:28]} Qe3 {[%emt 0:03:17] Prevents Qe6+.} 38. g6 {[%emt 0:01:09] Intending Qf7+ and mate.} Qd2+ {[%emt 0:00:23]} 39. Kf3 {[%emt 0:01:39]} (39. Kh1 $6 Qh6+ 40. Kg2 Qg5+ 41. Qxg5 Bxg5) 39... Qc3+ {[%emt 0:00:17]} 40. Kg2 {[%emt 0:00:27] Threatening mate with Qe6+.} Qd2+ {[%emt 0:00:08]} 41. Kh3 {[%emt 0:33:59]} ({Resist} 41. Kh1 $6 Qh6+ 42. Kg2 Qd2+) 41... Qe3+ {[%emt 0:34:07]} 42. Rg3 {[%emt 0:01:04]} Qh6+ {[%emt 0:00:06]} 43. Kg2 $2 {[%emt 0:01:06]} (43. Kg4 $18 {is the precise move to win. White threatens Qf7+ and mate.} Qh4+ 44. Kf3) 43... Qd2+ $16 {[%emt 0:00:07]} 44. Kh1 {[%emt 0:00:00]} Qc1+ {[%emt 0:00:00]} 45. Kh2 {[%emt 0:00:00]} Qd2+ {[%emt 0:00:00]} 46. Kh3 {[%emt 0:00:00]} (46. Rg2 $16 {Qf7+ would kill now.} Qh6+ 47. Kg3 (47. Kg1 Qc1+ 48. Kf2 Bh4+ 49. Ke2 Qe1+ 50. Kd3 Qb1+ 51. Rc2 Qd1+ 52. Ke3 Qe1+ 53. Kf3 Qg3+ 54. Ke2 Qe1+ 55. Kf3 Qg3+ 56. Ke2 Qe1+ 57. Kf3 $11) 47... Qe3+ 48. Kh2 Qh6+ 49. Kg3 (49. Kg1 Qc1+ 50. Kf2 Bh4+ 51. Ke2 Qe1+ 52. Kd3 Qb1+ 53. Rc2 Qd1+ 54. Rd2 Qb1+ 55. Rc2 Qd1+ 56. Rd2 Qb1+ 57. Rc2 $11) 49... Qe3+ 50. Kh2 Qh6+) 46... Qh6+ $18 {[%emt 0:00:00]} 47. Kg4 {[%emt 0:00:00] White wants to mate with Qf7+.} Qh4+ {[%emt 0:00:00]} 48. Kf3 {[%emt 0:00:00] White is more active.} Qh1+ $2 {[%emt 0:00:00]} (48... Qf6 $18 49. Qxf6 Bxf6) 49. Kf2 {[%emt 0:00:00] White mates.} Qh2+ {[%emt 0:00:00]} 50. Kf1 {[%emt 0:00:00]} Qh1+ {[%emt 0:00:00]} 51. Rg1 {[%emt 0:00:00] Weighted Error Value: White=0.32/Black=0.35} 1-0

[Event "Czech Open-GM 2022"]
[Site "Pardubice"]
[Date "2022.07.25"]
[Round "4.31"]
[White "Kusa, Jakub"]
[Black "Nytra, Ondrej"]
[Result "1-0"]
[ECO "D30"]
[WhiteElo "2353"]
[BlackElo "2214"]
[Annotator "TA"]
[PlyCount "47"]
[EventDate "2022.07.22"]
[EventType "swiss"]
[EventCountry "CZE"]
[SourceTitle "playchess.com"]
[Source "ChessBase"]
[SourceQuality "1"]
[TimeControl "40/5400+30:1800+30"]

{[%evp 18,47,24,11,32,36,31,5,18,17,22,20,41,0,79,48,64,56,65,61,172,125,125,118,184,172,468,457,632,631,578,559]} 1. d4 {[%emt 0:00:06]} d5 {[%emt 0:00:11]} 2. c4 {[%emt 0:00:19]} e6 {[%emt 0:00:03]} 3. Nf3 {[%emt 0:00:26]} c6 {[%emt 0:00:03]} 4. Qc2 {[%emt 0:00:20]} Nf6 {[%emt 0:00:04]} 5. Bg5 {[%emt 0:01:11][%cal Bc1g5,Bg5h4,Bh4g3][%mdl 32]} Be7 {[%emt 0:00:22]} 6. e3 {[%emt 0:00:48]} Nbd7 {[%emt 0:00:39]} 7. Nc3 {[%emt 0:00:54]} O-O {[%emt 0:00:13]} 8. Rd1 {[%emt 0:00:37]} h6 {[%emt 0:01:11]} 9. Bh4 {[%emt 0:00:39]} a6 {[%emt 0:02:56]} 10. a3 {[%emt 0:03:05]} Ne8 {[%emt 0:09:07] D61: Queen's Gambit Declined: Classical: 7 Qc2.} 11. Bg3 {[%emt 0:03:07] [#]} Nd6 $146 {[%emt 0:00:15]} ({Predecessor:} 11... f5 12. Bd3 Nd6 13. cxd5 cxd5 14. Ne2 g5 15. h4 g4 16. Ne5 Nxe5 17. Bxe5 Nf7 18. Bc7 {½-½ (80) Dobias,J-Louma,J Rakovnik 1940}) 12. cxd5 {[%emt 0:03:37]} exd5 {[%emt 0:06:33] The position is equal.} 13. Bd3 {[%emt 0:00:33]} Nf6 {[%emt 0:01:27]} 14. h3 {[%emt 0:02:40]} Nb5 {[%emt 0:02:09]} 15. O-O {[%emt 0:05:48]} Qa5 {[%emt 0:00:24]} (15... Nxc3 $11 {remains equal.} 16. Qxc3 Ne4 17. Bxe4 dxe4) 16. Ne2 {[%emt 0:03:18] White is more active.} Nh5 {[%emt 0:08:24]} 17. Bh2 {[%emt 0:01:47]} Nd6 {[%emt 0:11:01]} 18. Ne5 {[%emt 0:02:30]} Be6 {[%emt 0:00:41]} ({Better is} 18... Qd8 $14) 19. g4 {[%emt 0:07:09]} (19. Bh7+ $18 Kh8 {[#]} 20. Bg6 $1 {[%mdl 512]}) 19... Nf6 $16 {[%emt 0:03:18]} 20. Nf4 $36 {[%emt 0:01:54][%mdl 2048] White is really pushing.} Rad8 {[%emt 0:02:56]} (20... Bc8 $16) 21. f3 {[%emt 0:03:29]} Nc8 $2 {[%emt 0:07:15]} (21... Bc8 {was called for.} 22. h4 Nfe8) 22. h4 $18 {[%emt 0:07:06] [#] aiming for g5. White is clearly winning.} g5 {[%emt 0:01:35]} 23. Nxe6 {[%emt 0:00:30]} fxe6 24. Be2 {[%emt 0:00:35] Weighted Error Value: White=0.12 (very precise) /Black=0.67} 1-0

[Event "Czech Open-GM 2022"]
[Site "Pardubice"]
[Date "2022.07.25"]
[Round "4.32"]
[White "Jedlicka, Ales"]
[Black "Simek, Petr"]
[Result "0-1"]
[ECO "A46"]
[WhiteElo "2216"]
[BlackElo "2348"]
[Annotator "TA"]
[PlyCount "64"]
[EventDate "2022.07.22"]
[EventType "swiss"]
[EventCountry "CZE"]
[SourceTitle "playchess.com"]
[Source "ChessBase"]
[SourceQuality "1"]
[TimeControl "40/5400+30:1800+30"]

{[%evp 17,64,18,31,11,12,12,30,-37,-22,-71,-45,-47,-56,-115,-87,-74,-77,-75,-70,-87,-87,-99,-89,-99,-95,-95,-61,-71,-22,-31,-12,-13,0,0,0,-26,-26,-64,-57,-82,-48,-86,-75,-192,-199,-209,-210,-518,-523]} 1. d4 {[%emt 0:00:22]} Nf6 {[%emt 0:04:09]} 2. Nf3 {[%emt 0:00:30]} d5 {[%emt 0:00:19]} 3. c4 {[%emt 0:00:17]} e6 {[%emt 0:00:07]} 4. g3 {[%emt 0:00:12]} Bb4+ {[%emt 0:00:06]} 5. Bd2 {[%emt 0:00:15]} Be7 {[%emt 0:00:05]} 6. Bg2 {[%emt 0:00:18]} O-O {[%emt 0:00:05]} 7. O-O {[%emt 0:00:18]} c6 {[%emt 0:00:12]} 8. Qc2 {[%emt 0:00:29]} a5 {[%emt 0:00:22] 8...Nbd7 is becoming the main line.} 9. Bf4 {[%emt 0:02:53]} Nbd7 {[%emt 0:00:41]} 10. Nbd2 {[%emt 0:01:12] E08: Closed Catalan: Main Line: 7 Qc2.} Nh5 {[%emt 0:00:58]} 11. Be3 {[%emt 0:01:21]} Bd6 {[%emt 0:15:14] [#]} 12. cxd5 $146 {[%emt 0:09:37]} (12. Bg5 $11 f6 13. Be3) ({Predecessor:} 12. Nb3 Qe7 13. Nc1 b5 14. c5 Bc7 15. Bg5 f6 16. Bd2 f5 17. Nd3 Bb7 18. Nfe5 {½-½ (44) Tomashevsky,E (2724)-Riazantsev,A (2651) Novosibirsk 2016}) 12... exd5 $15 {[%emt 0:00:50]} 13. Nh4 {[%emt 0:00:42]} (13. Bg5 $11 {is superior.} f6 14. Be3) 13... Nb6 {[%emt 0:25:33]} 14. Nf5 {[%emt 0:02:08]} Bc7 {[%emt 0:00:19]} 15. g4 {[%emt 0:04:35]} (15. Nf3 $15) 15... Nf4 {[%emt 0:04:44]} 16. Bxf4 {[%emt 0:01:15]} Bxf4 {[%emt 0:00:04]} 17. e3 {[%emt 0:00:25]} Bc7 {[%emt 0:00:23] aiming for ...g6.} 18. f4 {[%emt 0:02:00]} Qf6 {[%emt 0:23:05]} 19. Rae1 {[%emt 0:10:42]} Re8 {[%emt 0:01:17][%cal Oh7h5]} 20. Nf3 {[%emt 0:04:05]} Bxf5 {[%emt 0:01:40]} 21. gxf5 {[%emt 0:00:15]} Qd6 {[%emt 0:00:19]} 22. Ne5 {[%emt 0:04:51]} Re7 {[%emt 0:08:08]} (22... f6 $17 23. Nd3 Nc4) 23. Rf3 {[%emt 0:02:27]} f6 {[%emt 0:05:11]} (23... Rae8 $5 {[%cal Rf7f6]}) 24. Nd3 {[%emt 0:01:00]} Nd7 {[%emt 0:00:27]} 25. Rg3 {[%emt 0:03:02]} Rae8 {[%emt 0:02:01]} 26. Kf2 {[%emt 0:01:32]} Bb6 {[%emt 0:00:15][%cal Bc7b6,Bb6c5,Bc5b4][%mdl 32]} 27. Qd2 {[%emt 0:07:58]} Kh8 28. Bf3 {[%emt 0:01:57]} Rd8 {[%emt 0:02:00]} 29. Bh5 {[%emt 0:00:43]} c5 {[%emt 0:00:23]} 30. dxc5 {[%emt 0:01:29]} (30. Kf1 $17 {was called for.}) 30... Nxc5 $19 {[%emt 0:00:05]} 31. Nxc5 {[%emt 0:01:08]} Bxc5 {[%emt 0:00:07]} ({Worse is} 31... Qxc5 32. Qc3 $17) 32. Kg2 $2 {[%emt 0:01:20] [#]} (32. Rf1 {is more resistant.}) 32... Bb4 {[%emt 0:00:38] Weighted Error Value: White=0.41/Black=0.12 (very precise)} 0-1